[Event "Titled Tuesday Blitz March 14 Early 2023"]
[White "Tan, Zhongyi"]
[Black "Buksa, Nataliya"]
[WhiteFideId "8603642"]
[BlackFideId "14123622"]
[WhiteElo "2519"]
[BlackElo "2316"]
[Result "0-1"]
[Round "04"]
[TimeControl "180+2"]
[Date "2023.03.14"]
[WhiteClock "0:00:04"]
[BlackClock "0:00:17"]

1. d4 {[%clk 0:03:00]}  d5 {[%clk 0:02:59]} 2. c4 {[%clk 0:03:01]}  e6 {[%clk 0:03:00]} 3. Nc3 {[%clk 0:03:00]}  Nf6 {[%clk 0:03:00]} 4. cxd5 {[%clk 0:03:00]}  exd5 {[%clk 0:03:01]} 5. Bg5 {[%clk 0:03:00]}  c6 {[%clk 0:03:01]} 6. e3 {[%clk 0:03:00]}  Nbd7 {[%clk 0:03:02]} 7. Bd3 {[%clk 0:02:59]}  Be7 {[%clk 0:03:02]} 8. Nge2 {[%clk 0:02:57]}  O-O {[%clk 0:02:40]} 9. O-O {[%clk 0:02:56]}  h6 {[%clk 0:02:39]} 10. Bh4 {[%clk 0:02:56]}  Nh5 {[%clk 0:02:34]} 11. Bxe7 {[%clk 0:02:55]}  Qxe7 {[%clk 0:02:35]} 12. Qd2 {[%clk 0:02:56]}  b5 {[%clk 0:02:29]} 13. Rae1 {[%clk 0:02:44]}  a5 {[%clk 0:02:28]} 14. f3 {[%clk 0:02:43]}  b4 {[%clk 0:02:29]} 15. Na4 {[%clk 0:02:38]}  Ba6 {[%clk 0:02:29]} 16. Bxa6 {[%clk 0:02:33]}  Rxa6 {[%clk 0:02:29]} 17. Nc1 {[%clk 0:02:20]}  c5 {[%clk 0:02:27]} 18. dxc5 {[%clk 0:02:20]}  Nxc5 {[%clk 0:02:28]} 19. Nxc5 {[%clk 0:02:20]}  Qxc5 {[%clk 0:02:28]} 20. Nb3 {[%clk 0:02:21]}  Qb5 {[%clk 0:02:23]} 21. Nd4 {[%clk 0:02:18]}  Qd7 {[%clk 0:02:24]} 22. Rc1 {[%clk 0:02:13]}  Nf6 {[%clk 0:02:15]} 23. Rc5 {[%clk 0:02:12]}  Qd6 {[%clk 0:02:13]} 24. Rfc1 {[%clk 0:02:11]}  Nd7 {[%clk 0:02:14]} 25. Rc7 {[%clk 0:01:43]}  g6 {[%clk 0:01:43]} 26. Qd3 {[%clk 0:01:27]}  Ne5 {[%clk 0:01:38]} 27. Qb5 {[%clk 0:01:25]}  Nc4 {[%clk 0:01:34]} 28. Rd7 {[%clk 0:01:24]}  Qe5 {[%clk 0:01:18]} 29. Re1 {[%clk 0:01:09]}  Rd6 {[%clk 0:01:17]} 30. Rxd6 {[%clk 0:00:58]}  Qxd6 {[%clk 0:01:17]} 31. b3 {[%clk 0:00:50]}  Ne5 {[%clk 0:00:47]} 32. Qxa5 {[%clk 0:00:49]}  Rc8 {[%clk 0:00:47]} 33. Qb5 {[%clk 0:00:47]}  Rc3 {[%clk 0:00:46]} 34. Qe8+ {[%clk 0:00:42]}  Kg7 {[%clk 0:00:46]} 35. Nb5 {[%clk 0:00:41]}  Qf6 {[%clk 0:00:40]} 36. Nxc3 {[%clk 0:00:40]}  bxc3 {[%clk 0:00:41]} 37. Qc8 {[%clk 0:00:32]}  Nd3 {[%clk 0:00:37]} 38. Rd1 {[%clk 0:00:16]}  Nb4 {[%clk 0:00:30]} 39. Rd4 {[%clk 0:00:09]}  c2 {[%clk 0:00:21]} 40. Kf2 {[%clk 0:00:04]}  Qxd4 {[%clk 0:00:17]} 41. exd4 {[%clk 0:00:02]}  c1=Q {[%clk 0:00:18]} 42. Qxc1 {[%clk 0:00:02]}  Nd3+ {[%clk 0:00:18]} 43. Ke3 {[%clk 0:00:02]}  Nxc1 {[%clk 0:00:19]} 44. b4 {[%clk 0:00:02]}  Nxa2 {[%clk 0:00:19]} 45. b5 {[%clk 0:00:02]}  Nb4 {[%clk 0:00:18]} 46. b6 {[%clk 0:00:03]}  Kf6 {[%clk 0:00:18]} 47. b7 {[%clk 0:00:02]}  Nc6 {[%clk 0:00:18]} 48. Kf4 {[%clk 0:00:03]}  Ke6 {[%clk 0:00:18]} 49. g4 {[%clk 0:00:03]}  g5+ {[%clk 0:00:18]} 50. Ke3 {[%clk 0:00:03]}  Kd6 {[%clk 0:00:18]} 51. f4 {[%clk 0:00:03]}  f6 {[%clk 0:00:16]} 52. fxg5 {[%clk 0:00:03]}  fxg5 {[%clk 0:00:16]} 53. h4 {[%clk 0:00:04]}  Kc7 {[%clk 0:00:16]} 54. hxg5 {[%clk 0:00:04]}  hxg5 {[%clk 0:00:17]} 0-1


[Site "https://www.chess.com"]

[Event "Titled Tuesday Blitz March 14 Early 2023"]
[White "Samarth, J Rao"]
[Black "Prokofiev, Valentyn"]
[WhiteFideId "46652370"]
[BlackFideId "14160161"]
[WhiteElo "1564"]
[BlackElo "2260"]
[Result "0-1"]
[Round "04"]
[TimeControl "180+2"]
[Date "2023.03.14"]
[WhiteClock "0:00:04"]
[BlackClock "0:00:26"]

1. c4 {[%clk 0:03:00]}  g6 {[%clk 0:02:58]} 2. d4 {[%clk 0:03:00]}  Bg7 {[%clk 0:02:59]} 3. e4 {[%clk 0:03:00]}  c5 {[%clk 0:02:59]} 4. d5 {[%clk 0:03:00]}  d6 {[%clk 0:02:59]} 5. Nc3 {[%clk 0:02:58]}  Nf6 {[%clk 0:03:00]} 6. h3 {[%clk 0:02:54]}  O-O {[%clk 0:03:00]} 7. Nf3 {[%clk 0:02:54]}  e6 {[%clk 0:03:00]} 8. Be2 {[%clk 0:02:52]}  exd5 {[%clk 0:02:58]} 9. exd5 {[%clk 0:02:53]}  Bf5 {[%clk 0:02:58]} 10. O-O {[%clk 0:02:53]}  Ne4 {[%clk 0:02:58]} 11. Nxe4 {[%clk 0:02:52]}  Bxe4 {[%clk 0:02:59]} 12. Bd3 {[%clk 0:02:52]}  Bxf3 {[%clk 0:02:59]} 13. Qxf3 {[%clk 0:02:52]}  Nd7 {[%clk 0:03:00]} 14. Qd1 {[%clk 0:02:51]}  Ne5 {[%clk 0:02:57]} 15. Be2 {[%clk 0:02:51]}  Qh4 {[%clk 0:02:55]} 16. f4 {[%clk 0:02:45]}  Nd7 {[%clk 0:02:55]} 17. Rb1 {[%clk 0:02:38]}  Bd4+ {[%clk 0:02:49]} 18. Kh2 {[%clk 0:02:38]}  Rae8 {[%clk 0:02:46]} 19. Qd3 {[%clk 0:02:36]}  f5 {[%clk 0:02:42]} 20. Bf3 {[%clk 0:02:27]}  Nf6 {[%clk 0:02:38]} 21. g3 {[%clk 0:02:20]}  Qh6 {[%clk 0:02:34]} 22. Bd2 {[%clk 0:02:16]}  Ne4 {[%clk 0:02:09]} 23. Bxe4 {[%clk 0:02:10]}  fxe4 {[%clk 0:02:04]} 24. Qe2 {[%clk 0:02:06]}  e3 {[%clk 0:02:02]} 25. Bc1 {[%clk 0:01:58]}  Qg7 {[%clk 0:02:01]} 26. Rf3 {[%clk 0:01:57]}  Re4 {[%clk 0:01:53]} 27. b3 {[%clk 0:01:49]}  g5 {[%clk 0:01:50]} 28. fxg5 {[%clk 0:01:38]}  Rxf3 {[%clk 0:01:37]} 29. Qxf3 {[%clk 0:01:38]}  Re8 {[%clk 0:01:34]} 30. Qe2 {[%clk 0:01:26]}  Qg6 {[%clk 0:01:28]} 31. Rb2 {[%clk 0:01:19]}  Bxb2 {[%clk 0:01:24]} 32. Bxb2 {[%clk 0:01:20]}  Rf8 {[%clk 0:01:08]} 33. Bf6 {[%clk 0:01:08]}  Qe4 {[%clk 0:01:04]} 34. g4 {[%clk 0:01:00]}  Qf4+ {[%clk 0:00:56]} 35. Kg2 {[%clk 0:01:00]}  Re8 {[%clk 0:00:47]} 36. a3 {[%clk 0:00:28]}  Qe4+ {[%clk 0:00:45]} 37. Kg3 {[%clk 0:00:28]}  Qb1 {[%clk 0:00:44]} 38. h4 {[%clk 0:00:17]}  Qxb3 {[%clk 0:00:35]} 39. g6 {[%clk 0:00:10]}  hxg6 {[%clk 0:00:31]} 40. h5 {[%clk 0:00:10]}  Qb1 {[%clk 0:00:29]} 41. h6 {[%clk 0:00:04]}  Qg1+ {[%clk 0:00:29]} 42. Kf4 {[%clk 0:00:03]}  Qf2+ {[%clk 0:00:26]} 43. Qxf2 {[%clk 0:00:03]}  exf2 {[%clk 0:00:27]} 44. Kg5 {[%clk 0:00:03]}  f1=Q {[%clk 0:00:26]} 45. Kxg6 {[%clk 0:00:04]}  Qd3+ {[%clk 0:00:26]} 46. Kh5 {[%clk 0:00:04]}  Kh7 {[%clk 0:00:26]} 47. g5 {[%clk 0:00:04]}  Qh3# {[%clk 0:00:26]} 0-1


[Site "https://www.chess.com"]

[Event "Titled Tuesday Blitz March 14 Early 2023"]
[White "Santos Ruiz, Miguel"]
[Black "Jiang, Andrew"]
[WhiteFideId "22291482"]
[BlackFideId "30953510"]
[WhiteElo "2504"]
[BlackElo "1883"]
[Result "1-0"]
[Round "04"]
[TimeControl "180+2"]
[Date "2023.03.14"]
[WhiteClock "0:01:08"]
[BlackClock "0:01:26"]

1. e4 {[%clk 0:03:00]}  e5 {[%clk 0:02:59]} 2. Nf3 {[%clk 0:03:00]}  Nc6 {[%clk 0:02:58]} 3. d3 {[%clk 0:03:00]}  Nf6 {[%clk 0:02:56]} 4. g3 {[%clk 0:02:59]}  d5 {[%clk 0:02:53]} 5. exd5 {[%clk 0:02:59]}  Qxd5 {[%clk 0:02:54]} 6. Bg2 {[%clk 0:03:00]}  Bg4 {[%clk 0:02:50]} 7. h3 {[%clk 0:03:00]}  Bxf3 {[%clk 0:02:49]} 8. Bxf3 {[%clk 0:02:59]}  Qe6 {[%clk 0:02:48]} 9. Bg2 {[%clk 0:02:57]}  O-O-O {[%clk 0:02:48]} 10. Nd2 {[%clk 0:02:53]}  h5 {[%clk 0:02:46]} 11. Qf3 {[%clk 0:02:29]}  Nd5 {[%clk 0:02:27]} 12. c3 {[%clk 0:02:28]}  f5 {[%clk 0:02:25]} 13. h4 {[%clk 0:02:23]}  Nf6 {[%clk 0:02:21]} 14. O-O {[%clk 0:02:16]}  Qd7 {[%clk 0:02:21]} 15. Nc4 {[%clk 0:02:09]}  e4 {[%clk 0:02:11]} 16. dxe4 {[%clk 0:02:07]}  fxe4 {[%clk 0:02:12]} 17. Qe2 {[%clk 0:02:06]}  Qd3 {[%clk 0:02:10]} 18. Qxd3 {[%clk 0:02:02]}  exd3 {[%clk 0:02:10]} 19. Rd1 {[%clk 0:02:01]}  Bc5 {[%clk 0:02:09]} 20. b4 {[%clk 0:01:51]}  Bb6 {[%clk 0:02:07]} 21. Bg5 {[%clk 0:01:27]}  Rhf8 {[%clk 0:01:50]} 22. Rd2 {[%clk 0:01:23]}  Ng4 {[%clk 0:01:45]} 23. Nxb6+ {[%clk 0:01:21]}  axb6 {[%clk 0:01:41]} 24. Bxd8 {[%clk 0:01:22]}  Rxd8 {[%clk 0:01:41]} 25. Rad1 {[%clk 0:01:17]}  Nce5 {[%clk 0:01:39]} 26. f4 {[%clk 0:01:17]}  Nc4 {[%clk 0:01:30]} 27. Rxd3 {[%clk 0:01:17]}  Re8 {[%clk 0:01:29]} 28. Bd5 {[%clk 0:01:09]}  Nb2 {[%clk 0:01:26]} 29. Be6+ {[%clk 0:01:08]} 1-0


[Site "https://www.chess.com"]

[Event "Titled Tuesday Blitz March 14 Early 2023"]
[White "De Silva, L M S T"]
[Black "Staudenhocker43"]
[WhiteFideId "9953698"]
[WhiteElo "2403"]
[BlackElo "2419"]
[Result "1-0"]
[Round "04"]
[TimeControl "180+2"]
[Date "2023.03.14"]
[WhiteClock "0:00:57"]
[BlackClock "0:01:13"]

1. b3 {[%clk 0:02:56]}  Nf6 {[%clk 0:02:59]} 2. Bb2 {[%clk 0:02:57]}  g6 {[%clk 0:02:59]} 3. c4 {[%clk 0:02:57]}  Bg7 {[%clk 0:02:58]} 4. e4 {[%clk 0:02:57]}  d6 {[%clk 0:02:56]} 5. g3 {[%clk 0:02:56]}  O-O {[%clk 0:02:56]} 6. Bg2 {[%clk 0:02:57]}  c5 {[%clk 0:02:56]} 7. Ne2 {[%clk 0:02:57]}  Nc6 {[%clk 0:02:56]} 8. O-O {[%clk 0:02:57]}  Rb8 {[%clk 0:02:55]} 9. d4 {[%clk 0:02:57]}  cxd4 {[%clk 0:02:55]} 10. Nxd4 {[%clk 0:02:58]}  Bd7 {[%clk 0:02:52]} 11. Nc3 {[%clk 0:02:57]}  a6 {[%clk 0:02:52]} 12. a4 {[%clk 0:02:56]}  Qb6 {[%clk 0:02:48]} 13. Nf3 {[%clk 0:02:21]}  Na5 {[%clk 0:02:38]} 14. Nd2 {[%clk 0:02:19]}  Rfc8 {[%clk 0:02:34]} 15. Rb1 {[%clk 0:02:15]}  e6 {[%clk 0:02:31]} 16. Ba3 {[%clk 0:02:06]}  Rd8 {[%clk 0:02:18]} 17. b4 {[%clk 0:01:54]}  Nc6 {[%clk 0:02:18]} 18. b5 {[%clk 0:01:54]}  Ne5 {[%clk 0:02:07]} 19. a5 {[%clk 0:01:51]}  Qxa5 {[%clk 0:02:03]} 20. Bxd6 {[%clk 0:01:46]}  Qxc3 {[%clk 0:02:03]} 21. Bxb8 {[%clk 0:01:46]}  Rxb8 {[%clk 0:02:02]} 22. bxa6 {[%clk 0:01:47]}  Bc6 {[%clk 0:01:56]} 23. f4 {[%clk 0:01:41]}  Nxc4 {[%clk 0:01:56]} 24. Nxc4 {[%clk 0:01:39]}  Qxc4 {[%clk 0:01:56]} 25. axb7 {[%clk 0:01:37]}  Qc5+ {[%clk 0:01:52]} 26. Kh1 {[%clk 0:01:35]}  Rxb7 {[%clk 0:01:50]} 27. Rc1 {[%clk 0:01:32]}  Qb6 {[%clk 0:01:47]} 28. Qd6 {[%clk 0:01:22]}  Be8 {[%clk 0:01:31]} 29. Qxb6 {[%clk 0:01:16]}  Rxb6 {[%clk 0:01:32]} 30. Rc8 {[%clk 0:01:16]}  Kf8 {[%clk 0:01:30]} 31. e5 {[%clk 0:01:14]}  Nd5 {[%clk 0:01:27]} 32. Ra1 {[%clk 0:01:06]}  Ke7 {[%clk 0:01:14]} 33. Ra7+ {[%clk 0:00:57]}  Bd7 {[%clk 0:01:13]} 34. Bxd5 {[%clk 0:00:57]} 1-0


[Site "https://www.chess.com"]

[Event "Titled Tuesday Blitz March 14 Early 2023"]
[White "Garcia Pantoja, Roberto"]
[Black "aidenzhouu"]
[WhiteFideId "3509265"]
[WhiteElo "2544"]
[BlackElo "2413"]
[Result "1/2-1/2"]
[Round "04"]
[TimeControl "180+2"]
[Date "2023.03.14"]
[WhiteClock "0:00:09"]
[BlackClock "0:00:06"]

1. e4 {[%clk 0:03:00]}  c6 {[%clk 0:02:58]} 2. d4 {[%clk 0:03:00]}  d5 {[%clk 0:02:58]} 3. f3 {[%clk 0:03:00]}  e6 {[%clk 0:02:58]} 4. Nc3 {[%clk 0:02:59]}  Nf6 {[%clk 0:02:57]} 5. e5 {[%clk 0:02:52]}  Nfd7 {[%clk 0:02:57]} 6. f4 {[%clk 0:02:53]}  c5 {[%clk 0:02:57]} 7. Nf3 {[%clk 0:02:54]}  Nc6 {[%clk 0:02:56]} 8. Be3 {[%clk 0:02:53]}  cxd4 {[%clk 0:02:57]} 9. Nxd4 {[%clk 0:02:53]}  Bc5 {[%clk 0:02:58]} 10. Qd2 {[%clk 0:02:52]}  a6 {[%clk 0:02:58]} 11. O-O-O {[%clk 0:02:51]}  Nxd4 {[%clk 0:02:59]} 12. Bxd4 {[%clk 0:02:52]}  b5 {[%clk 0:03:00]} 13. h4 {[%clk 0:02:51]}  b4 {[%clk 0:02:53]} 14. Ne2 {[%clk 0:02:49]}  a5 {[%clk 0:02:54]} 15. Qe3 {[%clk 0:02:48]}  Qb6 {[%clk 0:02:45]} 16. Bxc5 {[%clk 0:02:26]}  Nxc5 {[%clk 0:02:40]} 17. Nd4 {[%clk 0:02:23]}  Ba6 {[%clk 0:02:37]} 18. Bxa6 {[%clk 0:02:22]}  Rxa6 {[%clk 0:02:38]} 19. f5 {[%clk 0:02:20]}  a4 {[%clk 0:02:15]} 20. Kb1 {[%clk 0:02:10]}  Ne4 {[%clk 0:02:03]} 21. fxe6 {[%clk 0:02:07]}  fxe6 {[%clk 0:01:42]} 22. Qe2 {[%clk 0:01:16]}  Nc3+ {[%clk 0:01:06]} 23. bxc3 {[%clk 0:01:15]}  bxc3+ {[%clk 0:01:07]} 24. Nb3 {[%clk 0:01:03]}  axb3 {[%clk 0:00:52]} 25. cxb3 {[%clk 0:01:01]}  O-O {[%clk 0:00:52]} 26. Rhf1 {[%clk 0:00:47]}  Rc8 {[%clk 0:00:29]} 27. Rc1 {[%clk 0:00:40]}  Qd4 {[%clk 0:00:16]} 28. Rc2 {[%clk 0:00:33]}  Ra7 {[%clk 0:00:13]} 29. h5 {[%clk 0:00:26]}  Rf8 {[%clk 0:00:13]} 30. Rxf8+ {[%clk 0:00:23]}  Kxf8 {[%clk 0:00:14]} 31. Qf2+ {[%clk 0:00:22]}  Qxf2 {[%clk 0:00:13]} 32. Rxf2+ {[%clk 0:00:23]}  Ke7 {[%clk 0:00:14]} 33. a4 {[%clk 0:00:22]}  d4 {[%clk 0:00:13]} 34. Kc2 {[%clk 0:00:22]}  Ra5 {[%clk 0:00:12]} 35. Re2 {[%clk 0:00:19]}  Kd7 {[%clk 0:00:09]} 36. Kd3 {[%clk 0:00:20]}  Rd5 {[%clk 0:00:10]} 37. b4 {[%clk 0:00:19]}  Kc6 {[%clk 0:00:10]} 38. Ra2 {[%clk 0:00:18]}  Kb6 {[%clk 0:00:10]} 39. Kc4 {[%clk 0:00:17]}  Ka6 {[%clk 0:00:08]} 40. g4 {[%clk 0:00:17]}  g6 {[%clk 0:00:08]} 41. h6 {[%clk 0:00:17]}  Kb6 {[%clk 0:00:07]} 42. Kd3 {[%clk 0:00:15]}  Ka6 {[%clk 0:00:08]} 43. a5 {[%clk 0:00:15]}  Rd7 {[%clk 0:00:06]} 44. Kc4 {[%clk 0:00:15]}  Rd5 {[%clk 0:00:07]} 45. Kd3 {[%clk 0:00:11]}  Rd7 {[%clk 0:00:07]} 46. Ra1 {[%clk 0:00:11]}  Rd5 {[%clk 0:00:07]} 47. Rb1 {[%clk 0:00:11]}  Kb5 {[%clk 0:00:06]} 48. Ra1 {[%clk 0:00:10]}  Ka6 {[%clk 0:00:06]} 49. Ra2 {[%clk 0:00:09]} 1/2-1/2


[Site "https://www.chess.com"]

[Event "Titled Tuesday Blitz March 14 Early 2023"]
[White "Kvaloy, Aksel Bu"]
[Black "Hoffmann, Asa"]
[WhiteFideId "1528815"]
[BlackFideId "2001470"]
[WhiteElo "2208"]
[BlackElo "2117"]
[Result "1-0"]
[Round "04"]
[TimeControl "180+2"]
[Date "2023.03.14"]
[WhiteClock "0:00:02"]
[BlackClock "0:00:01"]

1. d4 {[%clk 0:03:00]}  Nf6 {[%clk 0:02:57]} 2. c4 {[%clk 0:03:00]}  c5 {[%clk 0:02:53]} 3. d5 {[%clk 0:03:00]}  e5 {[%clk 0:02:53]} 4. Nc3 {[%clk 0:02:57]}  d6 {[%clk 0:02:53]} 5. e4 {[%clk 0:02:57]}  Be7 {[%clk 0:02:52]} 6. g3 {[%clk 0:02:56]}  O-O {[%clk 0:02:52]} 7. Bg2 {[%clk 0:02:57]}  Na6 {[%clk 0:02:52]} 8. Nge2 {[%clk 0:02:57]}  Ne8 {[%clk 0:02:51]} 9. O-O {[%clk 0:02:56]}  Bd7 {[%clk 0:02:51]} 10. f4 {[%clk 0:02:54]}  Bf6 {[%clk 0:02:51]} 11. h3 {[%clk 0:02:52]}  Nec7 {[%clk 0:02:51]} 12. Kh2 {[%clk 0:02:51]}  b5 {[%clk 0:02:50]} 13. cxb5 {[%clk 0:02:48]}  Nxb5 {[%clk 0:02:50]} 14. g4 {[%clk 0:02:47]}  exf4 {[%clk 0:02:44]} 15. Bxf4 {[%clk 0:02:47]}  Qe7 {[%clk 0:02:42]} 16. Qd2 {[%clk 0:02:46]}  Nd4 {[%clk 0:02:31]} 17. Nxd4 {[%clk 0:02:42]}  cxd4 {[%clk 0:02:29]} 18. Ne2 {[%clk 0:02:42]}  Bb5 {[%clk 0:02:15]} 19. Nxd4 {[%clk 0:02:31]}  Bxd4 {[%clk 0:02:04]} 20. Qxd4 {[%clk 0:02:29]}  Bxf1 {[%clk 0:02:03]} 21. Rxf1 {[%clk 0:02:30]}  Nc5 {[%clk 0:01:58]} 22. e5 {[%clk 0:02:28]}  dxe5 {[%clk 0:01:53]} 23. d6 {[%clk 0:02:10]}  exd4 {[%clk 0:01:46]} 24. dxe7 {[%clk 0:02:10]}  Rfe8 {[%clk 0:01:39]} 25. Bxa8 {[%clk 0:01:26]}  Rxa8 {[%clk 0:01:38]} 26. Be5 {[%clk 0:01:11]}  Ne6 {[%clk 0:01:37]} 27. Rd1 {[%clk 0:01:01]}  Re8 {[%clk 0:01:30]} 28. Bxd4 {[%clk 0:01:01]}  Rxe7 {[%clk 0:01:24]} 29. Rc1 {[%clk 0:01:00]}  h6 {[%clk 0:01:19]} 30. Rc8+ {[%clk 0:01:00]}  Kh7 {[%clk 0:01:18]} 31. Bc3 {[%clk 0:01:00]}  Rd7 {[%clk 0:01:10]} 32. Kg3 {[%clk 0:00:55]}  Kg6 {[%clk 0:01:00]} 33. h4 {[%clk 0:00:50]}  h5 {[%clk 0:00:55]} 34. gxh5+ {[%clk 0:00:50]}  Kxh5 {[%clk 0:00:53]} 35. Rh8+ {[%clk 0:00:50]}  Kg6 {[%clk 0:00:52]} 36. h5+ {[%clk 0:00:33]}  Kf5 {[%clk 0:00:48]} 37. Rg8 {[%clk 0:00:27]}  f6 {[%clk 0:00:40]} 38. Re8 {[%clk 0:00:26]}  Ng5 {[%clk 0:00:35]} 39. Re1 {[%clk 0:00:20]}  Rd3+ {[%clk 0:00:35]} 40. Kg2 {[%clk 0:00:20]}  Ne4 {[%clk 0:00:25]} 41. Rh1 {[%clk 0:00:10]}  Nxc3 {[%clk 0:00:21]} 42. bxc3 {[%clk 0:00:10]}  Rd7 {[%clk 0:00:21]} 43. h6 {[%clk 0:00:09]}  gxh6 {[%clk 0:00:19]} 44. Rxh6 {[%clk 0:00:10]}  Rd2+ {[%clk 0:00:17]} 45. Kf3 {[%clk 0:00:10]}  Rxa2 {[%clk 0:00:17]} 46. Rh5+ {[%clk 0:00:10]}  Ke6 {[%clk 0:00:15]} 47. Ke4 {[%clk 0:00:09]}  Ra4+ {[%clk 0:00:11]} 48. Kd3 {[%clk 0:00:09]}  f5 {[%clk 0:00:10]} 49. Rh8 {[%clk 0:00:08]}  Ke5 {[%clk 0:00:09]} 50. Ke3 {[%clk 0:00:06]}  Ra3 {[%clk 0:00:09]} 51. Kd3 {[%clk 0:00:05]}  Kf4 {[%clk 0:00:09]} 52. Rh4+ {[%clk 0:00:05]}  Kf3 {[%clk 0:00:08]} 53. Rh1 {[%clk 0:00:05]}  f4 {[%clk 0:00:08]} 54. Rf1+ {[%clk 0:00:05]}  Kg3 {[%clk 0:00:08]} 55. Ke4 {[%clk 0:00:02]}  Ra4+ {[%clk 0:00:07]} 56. Kd5 {[%clk 0:00:02]}  f3 {[%clk 0:00:07]} 57. c4 {[%clk 0:00:03]}  f2 {[%clk 0:00:07]} 58. c5 {[%clk 0:00:03]}  Kg2 {[%clk 0:00:07]} 59. c6 {[%clk 0:00:03]}  Ra2 {[%clk 0:00:04]} 60. c7 {[%clk 0:00:03]}  Rc2 {[%clk 0:00:02]} 61. Rd1 {[%clk 0:00:01]}  f1=Q {[%clk 0:00:01]} 62. Ke6 {[%clk 0:00:02]} 1-0


[Site "https://www.chess.com"]

[Event "Titled Tuesday Blitz March 14 Early 2023"]
[White "Agasarov, Benik"]
[Black "Girsh, Daniel"]
[WhiteFideId "13314823"]
[BlackFideId "30949190"]
[WhiteElo "2179"]
[BlackElo "2075"]
[Result "1-0"]
[Round "04"]
[TimeControl "180+2"]
[Date "2023.03.14"]
[WhiteClock "0:00:36"]
[BlackClock "0:00:01"]

1. e4 {[%clk 0:03:00]}  e6 {[%clk 0:02:55]} 2. d4 {[%clk 0:02:46]}  d5 {[%clk 0:02:50]} 3. exd5 {[%clk 0:02:45]}  exd5 {[%clk 0:02:50]} 4. Bd3 {[%clk 0:02:44]}  Bd6 {[%clk 0:02:51]} 5. Qf3 {[%clk 0:02:44]}  Ne7 {[%clk 0:02:50]} 6. Ne2 {[%clk 0:02:43]}  Nbc6 {[%clk 0:02:47]} 7. c3 {[%clk 0:02:42]}  Ng6 {[%clk 0:02:42]} 8. Qxd5 {[%clk 0:02:36]}  O-O {[%clk 0:02:42]} 9. Qf3 {[%clk 0:02:32]}  Nh4 {[%clk 0:02:39]} 10. Qd5 {[%clk 0:01:58]}  Be6 {[%clk 0:02:30]} 11. Qg5 {[%clk 0:01:57]}  Qxg5 {[%clk 0:01:50]} 12. Bxg5 {[%clk 0:01:58]}  Nxg2+ {[%clk 0:01:50]} 13. Kd1 {[%clk 0:01:58]}  f6 {[%clk 0:01:44]} 14. Be3 {[%clk 0:01:53]}  Ne7 {[%clk 0:01:43]} 15. Be4 {[%clk 0:01:45]}  Bd5 {[%clk 0:01:42]} 16. Nd2 {[%clk 0:01:42]}  f5 {[%clk 0:01:34]} 17. Bxg2 {[%clk 0:01:37]}  Bxg2 {[%clk 0:01:34]} 18. Rg1 {[%clk 0:01:37]}  Bc6 {[%clk 0:01:27]} 19. Bf4 {[%clk 0:01:37]}  Rad8 {[%clk 0:01:06]} 20. Kc2 {[%clk 0:01:34]}  Nd5 {[%clk 0:01:03]} 21. Bxd6 {[%clk 0:01:33]}  Rxd6 {[%clk 0:01:04]} 22. Nc4 {[%clk 0:01:31]}  Rh6 {[%clk 0:01:02]} 23. Ne5 {[%clk 0:01:10]}  Rxh2 {[%clk 0:00:57]} 24. Raf1 {[%clk 0:01:07]}  Be8 {[%clk 0:00:53]} 25. Kd2 {[%clk 0:00:59]}  f4 {[%clk 0:00:50]} 26. Ng4 {[%clk 0:00:50]}  Rh3 {[%clk 0:00:45]} 27. f3 {[%clk 0:00:49]}  Bh5 {[%clk 0:00:35]} 28. c4 {[%clk 0:00:49]}  Bxg4 {[%clk 0:00:33]} 29. fxg4 {[%clk 0:00:48]}  Ne3 {[%clk 0:00:28]} 30. Rxf4 {[%clk 0:00:48]}  Nxc4+ {[%clk 0:00:28]} 31. Kc1 {[%clk 0:00:43]}  Rxf4 {[%clk 0:00:26]} 32. Nxf4 {[%clk 0:00:44]}  Rf3 {[%clk 0:00:21]} 33. Ne6 {[%clk 0:00:40]}  Rf6 {[%clk 0:00:18]} 34. d5 {[%clk 0:00:37]}  c6 {[%clk 0:00:18]} 35. g5 {[%clk 0:00:38]}  Rf5 {[%clk 0:00:15]} 36. dxc6 {[%clk 0:00:36]}  bxc6 {[%clk 0:00:16]} 37. Rd1 {[%clk 0:00:36]}  Rd5 {[%clk 0:00:16]} 38. Rf1 {[%clk 0:00:36]}  h5 {[%clk 0:00:07]} 39. g6 {[%clk 0:00:36]}  Rd6 {[%clk 0:00:01]} 40. Rf8# {[%clk 0:00:36]} 1-0


[Site "https://www.chess.com"]

[Event "Titled Tuesday Blitz March 14 Early 2023"]
[White "Weetik, Vjacheslav"]
[Black "Shevtchenko, Olesya"]
[WhiteFideId "4153472"]
[BlackFideId "24131890"]
[WhiteElo "2469"]
[BlackElo "2003"]
[Result "1-0"]
[Round "04"]
[TimeControl "180+2"]
[Date "2023.03.14"]
[WhiteClock "0:00:03"]
[BlackClock "0:00:03"]

1. d4 {[%clk 0:02:59]}  Nf6 {[%clk 0:02:58]} 2. c4 {[%clk 0:02:59]}  e6 {[%clk 0:02:58]} 3. Nc3 {[%clk 0:02:58]}  d5 {[%clk 0:02:59]} 4. cxd5 {[%clk 0:02:58]}  exd5 {[%clk 0:03:00]} 5. Bg5 {[%clk 0:02:58]}  c6 {[%clk 0:03:00]} 6. e3 {[%clk 0:02:58]}  Be7 {[%clk 0:03:01]} 7. Bd3 {[%clk 0:02:59]}  Nbd7 {[%clk 0:03:01]} 8. Nge2 {[%clk 0:02:59]}  Nh5 {[%clk 0:03:00]} 9. Bxe7 {[%clk 0:02:57]}  Qxe7 {[%clk 0:03:01]} 10. O-O {[%clk 0:02:54]}  g6 {[%clk 0:03:02]} 11. Qd2 {[%clk 0:02:53]}  Ndf6 {[%clk 0:03:01]} 12. f3 {[%clk 0:02:47]}  O-O {[%clk 0:03:01]} 13. e4 {[%clk 0:02:39]}  dxe4 {[%clk 0:02:50]} 14. fxe4 {[%clk 0:02:39]}  Be6 {[%clk 0:02:42]} 15. h3 {[%clk 0:02:08]}  Rad8 {[%clk 0:02:38]} 16. Qh6 {[%clk 0:01:35]}  b5 {[%clk 0:01:54]} 17. Rf3 {[%clk 0:00:41]}  b4 {[%clk 0:01:52]} 18. Na4 {[%clk 0:00:38]}  Bc8 {[%clk 0:01:44]} 19. Qg5 {[%clk 0:00:23]}  Rfe8 {[%clk 0:01:32]} 20. e5 {[%clk 0:00:23]}  Nd5 {[%clk 0:01:28]} 21. Qxe7 {[%clk 0:00:18]}  Rxe7 {[%clk 0:01:29]} 22. Nc5 {[%clk 0:00:15]}  Ng7 {[%clk 0:01:26]} 23. Bc4 {[%clk 0:00:11]}  Ne6 {[%clk 0:01:25]} 24. Bxd5 {[%clk 0:00:11]}  Nxc5 {[%clk 0:01:19]} 25. Bxc6 {[%clk 0:00:08]}  Ne6 {[%clk 0:01:08]} 26. d5 {[%clk 0:00:08]}  Ng5 {[%clk 0:01:07]} 27. Re3 {[%clk 0:00:09]}  Bf5 {[%clk 0:00:39]} 28. h4 {[%clk 0:00:06]}  Ne4 {[%clk 0:00:39]} 29. g4 {[%clk 0:00:06]}  Rxe5 {[%clk 0:00:31]} 30. gxf5 {[%clk 0:00:07]}  gxf5 {[%clk 0:00:32]} 31. Nf4 {[%clk 0:00:07]}  Kg7 {[%clk 0:00:29]} 32. Kh2 {[%clk 0:00:08]}  Kh6 {[%clk 0:00:28]} 33. Rg1 {[%clk 0:00:08]}  f6 {[%clk 0:00:21]} 34. Ne6 {[%clk 0:00:05]}  Rd6 {[%clk 0:00:18]} 35. Nf4 {[%clk 0:00:03]}  Re7 {[%clk 0:00:17]} 36. Re2 {[%clk 0:00:04]}  a5 {[%clk 0:00:17]} 37. Reg2 {[%clk 0:00:04]}  Rd8 {[%clk 0:00:14]} 38. Rg8 {[%clk 0:00:03]}  Rxg8 {[%clk 0:00:13]} 39. Rxg8 {[%clk 0:00:04]}  Nf2 {[%clk 0:00:13]} 40. Kg2 {[%clk 0:00:04]}  Ng4 {[%clk 0:00:13]} 41. Ne6 {[%clk 0:00:04]}  Ne3+ {[%clk 0:00:08]} 42. Kf3 {[%clk 0:00:04]}  Nc4 {[%clk 0:00:08]} 43. Kf4 {[%clk 0:00:04]}  Ne5 {[%clk 0:00:08]} 44. Kxf5 {[%clk 0:00:04]}  Nf7 {[%clk 0:00:07]} 45. Kxf6 {[%clk 0:00:03]}  Rc7 {[%clk 0:00:07]} 46. Ng5 {[%clk 0:00:03]}  Nd6 {[%clk 0:00:07]} 47. Rd8 {[%clk 0:00:03]}  Nc4 {[%clk 0:00:04]} 48. Rf8 {[%clk 0:00:01]}  Nxb2 {[%clk 0:00:03]} 49. Rf7 {[%clk 0:00:01]}  Rxf7+ {[%clk 0:00:03]} 50. Nxf7+ {[%clk 0:00:02]}  Kh5 {[%clk 0:00:02]} 51. d6 {[%clk 0:00:03]}  Nc4 {[%clk 0:00:03]} 52. d7 {[%clk 0:00:03]} 1-0


[Site "https://www.chess.com"]